bitfinex/quotes_SOLUSD_20260114
["timestamp","ask_amount","ask_price","bid_price","bid_amount"]
[1768400123158,6.89084895,145.12,145.09,0.69664612]
[1768400123875,6.89084895,145.12,145.09,4.11643317]
[1768400124255,7.34194027,145.12,145.09,3.41978705]
[1768400124576,6.89084895,145.12,145.09,4.11643317]
[1768400124964,6.89037414,145.13,145.09,4.11643317]
[1768400125873,6.98937414,145.13,145.08,6.89236829]
[1768400126073,0.4546478,145.12,145.09,3.41978705]
[1768400126582,24.1163095,145.13,145.09,4.11643317]
[1768400126765,24.2153095,145.13,145.09,4.11643317]
[1768400127373,6.89132382,145.11,145.07,0.69664612]
[1768400127579,0.44760562,145.1,145.07,0.69664612]
[1768400127878,0.44760562,145.1,145.06,11.01006045]
[1768400128576,7.33951306,145.1,145.06,7.5902734]
[1768400129183,10.75930011,145.1,145.06,7.5902734]
[1768400129581,7.33951306,145.1,145.06,7.5902734]
[1768400131792,0.10597175,145.09,145.05,7.5906129]
[1768400132590,10.76634229,145.1,145.06,0.69664612]
[1768400133276,10.76634229,145.1,145.06,7.59033073]
[1768400133872,10.76634229,145.1,145.06,0.69664612]
[1768400134215,0.099,145.09,145.05,11.01038551]
[1768400135289,6.99144124,145.09,145.05,7.59059846]
[1768400136501,10.41122829,145.09,145.05,7.59059846]
[1768400138302,10.41122829,145.09,145.06,0.69664612]
[1768400138489,6.99144124,145.09,145.06,0.69664612]
[1768400138690,0.099,145.09,145.06,7.59031973]
[1768400138884,6.99133613,145.09,145.06,0.69664612]
[1768400140510,7.34569012,145.12,145.09,0.69664612]
[1768400140822,0.099,145.11,145.07,0.69664612]
[1768400141297,6.89104232,145.12,145.09,0.69664612]
[1768400141683,3.87443485,145.13,145.06,6.8936584]
[1768400141684,7.34520216,145.13,145.1,0.69664612]
[1768400142094,0.4546478,145.13,145.09,4.11643317]
[1768400142298,7.34468413,145.14,145.11,0.69664612]
[1768400145197,10.76447118,145.14,145.11,0.69664612]
[1768400145510,10.76447118,145.14,145.1,0.69664612]
[1768400146811,27.98921969,145.14,145.1,0.69664612]
[1768400147511,106.77443485,145.15,145.1,0.69664612]
[1768400147690,17.2205047,145.18,145.14,0.69664612]
[1768400147889,20.73929175,145.18,145.14,0.69664612]
[1768400148322,3.87087837,145.17,145.14,0.69664612]
[1768400148522,3.87087837,145.17,145.13,0.69664612]
[1768400148821,6.88895012,145.16,145.13,0.69664612]
[1768400149022,6.85895012,145.16,145.13,0.69664612]
[1768400155833,9.52684626,145.17,145.14,0.68006112]
[1768400156141,7.33977738,145.17,145.14,0.68006112]
[1768400156338,7.33977738,145.17,145.13,0.68006112]
[1768400156636,2.28958979,145.16,145.13,0.68006112]
[1768400156838,0.10252091,145.16,145.13,0.68006112]
[1768400157035,9.53040274,145.17,145.13,0.68006112]
[1768400157645,7.34333386,145.17,145.13,0.68006112]
[1768400158337,9.53040274,145.17,145.13,0.68006112]
[1768400159937,26.75159169,145.17,145.13,0.68006112]
[1768400160448,7.34333386,145.17,145.13,2.86713]
[1768400160624,7.34333386,145.17,145.13,0.68006112]
[1768400161936,7.34279423,145.18,145.14,0.68006112]
[1768400162142,6.88814643,145.18,145.15,0.68006112]
[1768400162646,6.88768632,145.19,145.17,0.68006112]
[1768400163024,6.88713214,145.2,145.17,0.68006112]
[1768400163224,13.0146478,145.22,145.17,0.68006112]
[1768400163420,0.099,145.21,145.17,0.68006112]
[1768400163825,9.17281849,145.21,145.17,0.68006112]
[1768400164434,0.45109132,145.2,145.17,0.68006112]
[1768400166554,6.88731554,145.2,145.17,0.68006112]
[1768400167230,6.88675817,145.21,145.18,0.68006112]
[1768400169853,7.33784949,145.21,145.17,9.75555971]
[1768400170456,7.33784949,145.21,145.17,0.68006112]
[1768400171032,6.88675817,145.21,145.17,0.68006112]
[1768400171449,5.43675817,145.21,145.17,9.07550419]
[1768400171639,0.1,145.23,145.18,2.18706888]
[1768400172033,0.1,145.23,145.19,0.68006112]
[1768400172434,6.9858413,145.23,145.19,0.68006112]
[1768400173561,0.1,145.23,145.21,0.68006112]
[1768400173734,0.1,145.23,145.21,0.56006124]
[1768400176365,0.1,145.23,145.2,9.75412832]
[1768400176544,0.1,145.23,145.21,9.75365253]
[1768400177230,0.1,145.23,145.22,0.68006112]
[1768400177428,7.64359168,145.25,145.22,0.68006112]
[1768400178555,0.75877103,145.27,145.24,0.67535232]
[1768400179054,0.75877103,145.27,145.23,6.88558509]
[1768400179055,0.65877103,145.26,145.22,7.56124515]
[1768400179257,7.64268296,145.27,145.23,0.67535232]
[1768400179482,9.82975184,145.27,145.23,0.67535232]
[1768400179637,7.64268296,145.27,145.23,0.67535232]
[1768400180058,6.98391193,145.27,145.24,0.66612227]
[1768400180258,0.1,145.27,145.24,0.66612227]
[1768400180463,0.1,145.27,145.25,0.66612227]
[1768400181047,0.1,145.27,145.25,0.60612228]
[1768400181449,0.66045678,145.31,145.26,2.18706888]
[1768400181653,7.54247132,145.31,145.24,12.56]
[1768400181850,6.88201454,145.31,145.24,12.56]
[1768400182049,6.88201454,145.31,145.27,2.18706888]
[1768400182367,6.88201454,145.31,145.26,2.18706888]
[1768400182668,7.54247132,145.31,145.26,2.18706888]
[1768400182961,7.54247132,145.31,145.27,2.18706888]
[1768400183167,7.54247132,145.31,145.27,2.70242121]
[1768400184266,7.54247132,145.31,145.27,0.51535233]
[1768400184464,7.54247132,145.31,145.27,2.70242121]
[1768400185379,0.66045678,145.31,145.27,2.70242121]
[1768400185568,0.66045678,145.31,145.27,0.51535233]
[1768400185770,0.66045678,145.31,145.27,2.70242121]
[1768400186076,6.98139013,145.32,145.28,2.70242121]
[1768400186257,7.64189202,145.32,145.28,0.51535233]
[1768400186674,0.76045678,145.32,145.28,2.70242121]
[1768400186974,7.64190583,145.32,145.28,2.70242121]
[1768400187177,0.66045678,145.31,145.26,0.51535233]
[1768400187384,0.66045678,145.31,145.27,0.51535233]
[1768400187748,0.66045678,145.31,145.27,2.70242121]
[1768400188275,0.66045678,145.28,145.24,0.51535233]
[1768400188660,0.66045678,145.28,145.23,2.70242121]
[1768400188858,0.66045678,145.27,145.23,2.70242121]
[1768400189265,7.54339924,145.29,145.25,2.70242121]
[1768400189580,0.66045678,145.29,145.25,2.70242121]
[1768400189877,7.54317775,145.3,145.26,0.51535233]
[1768400190261,9.73024663,145.3,145.26,0.51535233]
[1768400190475,9.82904768,145.32,145.27,0.51535233]
[1768400190663,0.66045678,145.31,145.27,0.51535233]
[1768400191378,0.1,145.32,145.28,0.51535233]
[1768400192262,9.16854082,145.32,145.28,0.51535233]
[1768400192458,9.8289976,145.32,145.28,0.51535233]
[1768400192660,0.66045678,145.31,145.27,0.51535233]
[1768400194500,2.28706888,145.32,145.27,0.51535233]
[1768400194779,15.43652839,145.33,145.31,0.70629908]
[1768400195375,41.06565751,145.41,145.31,0.70629908]
[1768400195376,49.37633708,145.45,145.32,2.18706888]
[1768400195580,6.87710611,145.41,145.33,2.18706888]
[1768400195774,2.18706888,145.37,145.3,6.88223623]
[1768400195972,12.56,145.37,145.33,0.35080911]
[1768400196173,14.74706888,145.37,145.32,2.53787799]
[1768400196375,12.56,145.37,145.32,2.53787799]
[1768400196574,0.66045678,145.36,145.32,0.35080911]
[1768400196773,0.66045678,145.36,145.32,2.53787799]
[1768400197580,0.66045678,145.35,145.32,2.18706888]
[1768400199067,0.66045678,145.35,145.31,0.35080911]
[1768400200185,2.84752566,145.35,145.31,0.35080911]
[1768400200689,0.66045678,145.35,145.31,0.35080911]
[1768400200891,2.84752566,145.35,145.31,0.35080911]
[1768400201077,2.18706888,145.34,145.31,0.35080911]
[1768400202174,0.66045678,145.32,145.28,0.35080911]
[1768400202493,2.84752566,145.32,145.28,0.35080911]
[1768400203480,0.66045678,145.31,145.27,7.23454106]
[1768400203681,0.66045678,145.31,145.27,0.35080911]
[1768400206694,2.18706888,145.32,145.27,0.35080911]
[1768400207278,2.84752566,145.32,145.27,0.35080911]
[1768400207699,2.18706888,145.31,145.27,0.35080911]
[1768400207897,7.54187006,145.32,145.27,0.35080911]
[1768400208096,0.66045678,145.3,145.26,0.35080911]
[1768400208298,2.84752566,145.3,145.26,0.35080911]
[1768400208504,0.66045678,145.31,145.26,0.35080911]
[1768400209004,0.4540255,145.42,145.34,0.70629908]
[1768400209204,0.4540255,145.42,145.37,0.70629908]
[1768400209516,0.4540255,145.42,145.38,0.70629908]
[1768400209804,12.56,145.41,145.39,0.70629908]
[1768400210109,10.09374164,145.41,145.39,7.58415005]
[1768400210678,2.18706888,145.45,145.42,0.72076942]
[1768400210894,12.56,145.45,145.42,0.72076942]
[1768400211410,15.0,145.56,145.46,0.55724039]
[1768400211585,3.55095662,145.63,145.53,0.72076942]
[1768400211791,12.56,145.62,145.55,0.72076942]
[1768400212038,12.56,145.62,145.58,2.18706888]
[1768400212178,6.86572768,145.66,145.57,7.59026178]
[1768400212383,6.86572768,145.66,145.55,0.72076942]
[1768400212384,12.56,145.65,145.55,0.72076942]
[1768400212597,12.56,145.65,145.55,2.9078383]
[1768400212798,24.02898457,145.66,145.56,2.18706888]
[1768400213102,27.56,145.65,145.53,3.5481071]
[1768400213306,8.41391003,145.59,145.53,11.96201713]
[1768400213504,0.66643787,145.58,145.53,3.5481071]
[1768400213708,0.66643787,145.58,145.53,11.96201713]
[1768400214004,0.66643787,145.58,145.53,12.68278655]
[1768400214202,12.56,145.57,145.53,4.26887652]
[1768400214583,12.56,145.57,145.53,12.68278655]
[1768400214784,12.56,145.57,145.53,4.26887652]
[1768400215007,13.22643787,145.57,145.53,11.96201713]
[1768400215214,13.22643787,145.57,145.53,3.5481071]
[1768400215215,21.6403479,145.57,145.53,3.5481071]
[1768400215511,0.66643787,145.56,145.53,3.5481071]
[1768400216216,9.0803479,145.55,145.53,3.5481071]
[1768400216636,12.54,145.54,145.53,3.5481071]
[1768400216840,1.12046337,145.71,145.58,0.72076942]
[1768400217139,14.44853281,145.72,145.69,3.5450308]
[1768400217420,10.6765573,145.87,145.71,8.41391003]
[1768400217421,0.66643787,145.81,145.71,8.41391003]
[1768400217722,0.66643787,145.81,145.7,34.67505826]
[1768400217904,13.20643787,145.8,145.76,8.41391003]
[1768400218105,0.66643787,145.8,145.75,8.41391003]
[1768400218317,12.54,145.79,145.76,8.41391003]
[1768400218615,12.54,145.79,145.7,51.83279884]
[1768400218616,11.75543862,145.78,145.7,6.86304262]
[1768400218823,11.75543862,145.78,145.74,8.41391003]
[1768400219002,0.66643787,145.77,145.72,8.41391003]
[1768400219397,0.66643787,145.79,145.69,3.5450308]
[1768400219616,13.20643787,145.78,145.69,3.5450308]
[1768400219806,6.6801107,145.85,145.69,3.5450308]
[1768400219807,15.0,145.93,145.75,30.69382021]
[1768400220106,0.66643787,145.91,145.76,12.54]
[1768400220501,0.66643787,145.89,145.76,12.54]
[1768400220827,0.66643787,145.89,145.77,0.72076942]
[1768400221020,0.66643787,145.87,145.79,0.72076942]
[1768400221314,0.66643787,145.84,145.75,6.86105085]
[1768400221535,0.66643787,145.83,145.73,7.58237559]
[1768400221714,0.66643787,145.82,145.73,6.86160617]
[1768400221900,0.66643787,145.82,145.7,7.58378161]
[1768400221901,0.66643787,145.81,145.7,7.58378161]
[1768400222102,0.66643787,145.76,145.69,3.5450308]
[1768400222323,13.20643787,145.75,145.69,3.5450308]
[1768400222518,0.66643787,145.75,145.68,0.72076942]
[1768400222721,8.41391003,145.72,145.68,0.72076942]
[1768400222900,13.20643787,145.74,145.68,0.72076942]
[1768400223216,13.20643787,145.74,145.66,0.72076942]
[1768400223217,0.66643787,145.73,145.66,0.72076942]
[1768400223617,0.66643787,145.73,145.64,0.72076942]
[1768400223821,0.66643787,145.77,145.65,0.72076942]
[1768400224007,0.66643787,145.77,145.69,0.72076942]
[1768400224206,0.66643787,145.77,145.73,8.41391003]
[1768400224515,12.54,145.76,145.7,0.72076942]
[1768400224719,12.54,145.76,145.73,8.41391003]
[1768400224919,12.52,145.77,145.7,0.72076942]
[1768400225119,12.52,145.77,145.75,8.41391003]
[1768400225319,12.52,145.77,145.72,0.72076942]
[1768400225320,12.52,145.77,145.74,8.41391003]
[1768400225625,12.52,145.77,145.72,0.65129942]
[1768400225811,0.66643787,145.74,145.59,52.52733652]
[1768400226012,0.66643787,145.71,145.6,6.86767764]
[1768400226219,0.66643787,145.69,145.65,8.41391003]
[1768400226416,0.66643787,145.68,145.57,24.04258805]
[1768400226621,0.66643787,145.68,145.64,8.41391003]
[1768400226910,0.66643787,145.68,145.57,24.04258805]
[1768400227326,0.66643787,145.64,145.57,6.86954729]
[1768400227535,0.66643787,145.64,145.57,0.65553]
[1768400227536,12.52,145.63,145.57,0.65553]
[1768400227724,12.52,145.63,145.55,0.65553]
[1768400227725,0.66643787,145.62,145.55,0.65553]
[1768400227906,0.66643787,145.6,145.52,6.87189505]
[1768400228102,0.66643787,145.59,145.52,6.87189505]
[1768400228305,13.18643787,145.58,145.51,0.65553]
[1768400228604,0.66643787,145.57,145.5,6.87253693]
[1768400228806,0.66643787,145.57,145.54,8.41391003]
[1768400229009,0.66643787,145.57,145.49,0.65553]
[1768400229222,0.66643787,145.57,145.53,8.41391003]
[1768400229731,12.52,145.56,145.54,8.41391003]
[1768400230111,0.66643787,145.57,145.55,8.41391003]
[1768400230422,6.86779965,145.61,145.5,17.83761025]
[1768400230423,13.18643787,145.56,145.5,0.65553]
[1768400230623,0.66643787,145.54,145.51,8.41391003]
[1768400230798,12.52,145.53,145.48,0.65553]
[1768400231005,0.66643787,145.54,145.52,6.96391003]
[1768400231319,12.52,145.52,145.51,8.41391003]
[1768400231513,12.52,145.52,145.47,0.72076942]
[1768400231824,12.52,145.52,145.5,8.41391003]
[1768400232410,0.2257518,145.55,145.51,8.41391003]
[1768400232608,12.52,145.54,145.51,8.41391003]
[1768400232836,12.52,145.54,145.5,8.18147104]
[1768400233008,12.52,145.54,145.47,0.72076942]
[1768400233207,12.52,145.54,145.5,8.41391003]
[1768400233409,12.52,145.54,145.49,8.41391003]
[1768400233624,12.52,145.53,145.47,0.72076942]
[1768400233831,20.93391003,145.53,145.47,9.13467945]
[1768400234031,20.93391003,145.53,145.47,0.72076942]
[1768400234210,20.93391003,145.53,145.47,9.13467945]
[1768400234411,12.52,145.53,145.48,8.41391003]
[1768400234721,27.80538569,145.53,145.47,8.41391003]
[1768400235317,27.80538569,145.53,145.46,0.72076942]
[1768400235515,8.41391003,145.5,145.44,0.72076942]
[1768400235720,8.41391003,145.49,145.44,8.41391003]
[1768400235917,36.57006426,145.53,145.42,0.72076942]
[1768400235918,12.54,145.48,145.42,0.72076942]
[1768400236537,12.54,145.48,145.44,8.41391003]
[1768400236734,12.54,145.47,145.42,0.72076942]
[1768400236919,20.95391003,145.47,145.4,0.72076942]
[1768400237118,8.41391003,145.46,145.4,0.72076942]
[1768400237318,8.41391003,145.45,145.4,8.41391003]
[1768400237639,8.41391003,145.44,145.38,0.72076942]
[1768400238016,8.41391003,145.44,145.38,9.13467945]
[1768400238223,8.41391003,145.43,145.38,9.13467945]
[1768400238432,12.54,145.42,145.38,9.13467945]
[1768400238642,12.54,145.42,145.36,6.87939643]
[1768400238643,20.95391003,145.42,145.37,8.41391003]
[1768400238847,12.54,145.42,145.37,8.41391003]
[1768400239013,15.29012249,145.43,145.36,0.72076942]
[1768400239214,12.54,145.42,145.37,8.41391003]
[1768400239621,8.41391003,145.42,145.36,9.13467945]
[1768400239825,12.54,145.41,145.36,9.13467945]
[1768400240026,12.54,145.41,145.37,8.41391003]
[1768400240227,12.54,145.41,145.34,7.5716127]
[1768400240423,19.41734186,145.41,145.34,0.69119438]
[1768400240727,27.83125189,145.41,145.35,8.41391003]
[1768400240927,12.54,145.4,145.35,8.41391003]
[1768400241123,12.54,145.39,145.35,8.41391003]
[1768400241339,12.54,145.39,145.34,8.41391003]
[1768400241525,12.54,145.39,145.33,0.2]
[1768400241730,8.41391003,145.37,145.33,0.2]
[1768400242537,19.41833178,145.39,145.33,0.2]
[1768400242538,12.54,145.36,145.33,8.61391003]
[1768400242730,20.95391003,145.36,145.33,0.2]
[1768400242923,20.95391003,145.35,145.32,0.2]
[1768400243526,27.83399315,145.35,145.32,0.2]
[1768400244931,8.41391003,145.34,145.32,0.2]
[1768400245444,27.83399315,145.35,145.32,0.2]
[1768400245818,19.42008312,145.35,145.32,0.2]
[1768400246021,8.41391003,145.34,145.32,0.2]
[1768400246447,19.42008312,145.35,145.32,0.2]
[1768400246649,12.54,145.34,145.32,0.2]
[1768400246834,6.88008312,145.35,145.32,0.2]
[1768400246835,15.29399315,145.35,145.32,0.2]
[1768400247148,20.95391003,145.34,145.32,0.2]
[1768400247449,6.88008312,145.35,145.32,0.2]
[1768400247743,20.95391003,145.34,145.32,0.2]
[1768400248126,19.42045931,145.34,145.32,0.2]
[1768400248323,8.41391003,145.38,145.32,0.2]
[1768400248523,17.19539456,145.39,145.32,0.2]
[1768400248851,8.41391003,145.36,145.32,0.2]
[1768400250219,12.54,145.35,145.32,0.2]
[1768400250422,15.29361146,145.36,145.32,0.2]
[1768400250734,20.95391003,145.35,145.32,0.2]
[1768400250935,8.41391003,145.33,145.27,15.62436312]
[1768400251245,8.41391003,145.33,145.28,0.67292148]
[1768400251438,8.41391003,145.33,145.28,9.08683151]
[1768400251640,8.41391003,145.34,145.29,0.67292148]
[1768400251934,8.41391003,145.33,145.29,0.67292148]
[1768400252137,6.88041832,145.34,145.29,0.67292148]
[1768400252330,8.41391003,145.33,145.29,0.67292148]
[1768400253453,8.41391003,145.33,145.27,24.03827315]
[1768400253647,8.41391003,145.33,145.28,0.67292148]
[1768400253834,6.88136526,145.32,145.28,0.67292148]
[1768400254152,12.54,145.31,145.28,0.67292148]
[1768400254636,12.54,145.31,145.27,14.95144164]
[1768400254839,8.41391003,145.29,145.27,14.95144164]
[1768400255026,24.08477841,145.32,145.27,1e-08]
[1768400255231,8.41391003,145.3,145.27,1e-08]
[1768400255531,12.54,145.31,145.27,1e-08]
[1768400255839,8.41391003,145.29,145.27,1e-08]
[1768400256159,8.41391003,145.28,145.27,1e-08]
[1768400256329,20.95391003,145.28,145.23,0.67292148]
[1768400256527,8.41391003,145.27,145.23,0.67292148]
[1768400256728,12.54,145.28,145.23,9.08683151]
[1768400257135,20.95391003,145.28,145.23,0.67292148]
[1768400257449,6.88373373,145.27,145.23,0.67292148]
[1768400257752,6.85373374,145.27,145.23,0.67292148]
[1768400258049,12.56,145.26,145.24,0.67292148]
[1768400258359,12.53000001,145.26,145.24,0.67292148]
[1768400258554,12.50000002,145.26,145.24,0.67292148]
[1768400258844,0.1609365,145.3,145.24,9.08683151]
[1768400259148,27.85677403,145.29,145.24,0.67292148]
[1768400259355,15.29677403,145.29,145.24,0.67292148]
[1768400259533,12.56,145.28,145.24,0.67292148]
[1768400259851,12.56,145.27,145.24,0.67292148]
[1768400260058,12.56,145.26,145.24,0.67292148]
[1768400260553,12.56,145.26,145.23,9.08683151]
[1768400260848,0.16590136,145.28,145.23,9.08683151]
[1768400261037,12.56,145.27,145.23,9.08683151]
[1768400261947,0.66243787,145.32,145.26,0.67292148]
[1768400262150,0.66243787,145.32,145.25,8.41391003]
[1768400262151,12.56,145.31,145.28,9.08683151]
[1768400262346,12.56,145.3,145.28,9.08683151]
[1768400262653,0.66243787,145.34,145.29,8.41391003]
[1768400262856,0.66243787,145.34,145.3,8.41391003]
[1768400263153,0.66243787,145.38,145.33,8.41391003]
[1768400263337,0.66243787,145.38,145.31,0.67292148]
[1768400263338,0.65742286,145.36,145.31,0.67292148]
[1768400263538,9.07133289,145.36,145.3,8.41391003]
[1768400263732,9.06641768,145.34,145.27,0.67292148]
[1768400264029,9.06641768,145.34,145.29,8.41391003]
[1768400264238,9.06641768,145.34,145.29,9.08683151]
[1768400264239,12.56,145.33,145.29,9.08683151]
[1768400264447,12.56,145.32,145.3,8.41391003]
[1768400264643,0.66243787,145.36,145.31,8.41391003]
[1768400264851,9.0763479,145.36,145.3,9.08683151]
[1768400265151,12.56,145.35,145.32,0.67292148]
[1768400265541,12.56,145.35,145.31,8.41391003]
[1768400266146,12.56,145.35,145.32,8.41391003]
[1768400266537,6.87995157,145.35,145.3,0.67292148]
[1768400266850,12.56,145.34,145.32,8.41391003]
[1768400267038,12.56,145.33,145.32,9.08683151]
[1768400267357,12.56,145.33,145.32,8.41391003]
[1768400269132,12.56,145.33,145.3,0.67292148]
[1768400269350,12.56,145.33,145.3,8.41391003]
[1768400269532,11.11,145.32,145.31,8.41391003]
[1768400269732,0.66243787,145.35,145.31,8.41391003]
[1768400270152,0.66243787,145.37,145.23,34.63700074]
[1768400270355,12.56,145.36,145.26,34.41886549]
[1768400270554,12.56,145.36,145.34,8.41391003]
[1768400270858,13.2137361,145.36,145.34,8.41391003]
[1768400271042,13.2137361,145.36,145.35,8.41391003]
[1768400271239,13.18373611,145.36,145.35,8.41391003]
[1768400271764,0.6537361,145.36,145.34,8.41391003]
[1768400271966,0.6537361,145.38,145.35,8.41391003]
[1768400272258,12.56,145.37,145.36,8.41391003]
[1768400272856,12.56,145.37,145.32,6.88099056]
[1768400273049,12.56,145.37,145.36,8.41391003]
[1768400273436,12.56,145.37,145.35,8.41391003]
[1768400273939,12.56,145.37,145.33,8.41391003]
[1768400274256,0.6537361,145.36,145.32,8.41391003]
[1768400274567,0.6537361,145.36,145.33,8.41391003]
[1768400274759,20.09290694,145.37,145.33,8.41391003]
[1768400275058,7.53290694,145.37,145.33,8.41391003]
[1768400275233,13.2137361,145.36,145.29,6.88245787]
[1768400275435,13.2137361,145.36,145.32,5.1927157]
[1768400275635,20.09350275,145.36,145.33,5.1927157]
[1768400275834,0.6537361,145.35,145.31,5.1927157]
[1768400276050,0.6537361,145.35,145.28,6.88316557]
[1768400276256,0.6537361,145.37,145.32,5.1927157]
[1768400276456,0.6537361,145.41,145.36,5.1927157]
[1768400276643,0.6537361,145.41,145.32,6.8809834]
[1768400276644,0.6537361,145.39,145.34,5.1927157]
[1768400277068,0.6537361,145.39,145.31,6.88169958]
[1768400277250,13.2137361,145.38,145.32,5.1927157]
[1768400277455,0.6537361,145.38,145.33,5.1927157]
[1768400277751,13.2137361,145.37,145.29,17.20591006]
[1768400277950,0.6537361,145.36,145.32,5.1927157]
[1768400278459,0.6537361,145.36,145.3,6.88218996]
[1768400278639,0.6537361,145.36,145.29,6.88259065]
[1768400278839,0.6537361,145.36,145.31,12.07448288]
[1768400279040,0.6537361,145.36,145.33,5.1927157]
[1768400279245,0.6537361,145.36,145.34,5.1927157]
[1768400279246,12.56,145.35,145.34,5.1927157]
[1768400279658,6.6801107,145.43,145.34,5.1927157]
[1768400279659,34.3762792,145.45,145.35,6.87994496]
[1768400279845,6.6801107,145.45,145.36,5.1927157]
[1768400280043,5.1927157,145.43,145.36,5.1927157]
[1768400280365,5.1927157,145.42,145.35,12.07266066]
[1768400280741,5.1927157,145.41,145.35,5.1927157]
[1768400280943,5.1927157,145.41,145.34,6.88038345]
[1768400280944,12.56,145.4,145.34,6.88038345]
[1768400281143,17.7527157,145.4,145.33,6.8807316]
[1768400281344,17.7527157,145.4,145.34,5.1927157]
[1768400281547,109.5801107,145.45,145.35,5.1927157]
[1768400281756,0.6537361,145.39,145.34,6.8804136]
[1768400281958,13.2137361,145.38,145.34,12.0731293]
[1768400282343,13.2137361,145.38,145.35,5.1927157]
[1768400282547,13.2137361,145.38,145.34,12.0731293]
[1768400282769,13.2137361,145.38,145.34,6.8804136]
[1768400282968,13.2137361,145.38,145.34,12.0731293]
[1768400283167,0.6537361,145.37,145.34,12.0731293]
[1768400283471,0.6537361,145.37,145.29,0.6537361]
[1768400283763,0.6537361,145.37,145.32,5.1927157]
[1768400283943,0.6537361,145.35,145.32,5.1927157]
[1768400284748,0.6537361,145.35,145.32,12.07407924]
[1768400285267,0.6537361,145.35,145.31,5.1927157]
[1768400285850,0.6537361,145.35,145.3,6.88213981]
[1768400286068,0.6537361,145.35,145.31,5.1927157]
[1768400287571,0.6537361,145.35,145.3,6.88213981]
[1768400287764,0.6537361,145.35,145.31,5.1927157]
[1768400288170,0.6537361,145.34,145.28,6.88296528]
[1768400288363,12.56,145.33,145.3,5.1927157]
[1768400288879,5.1927157,145.36,145.32,5.1927157]
[1768400288880,0.6537361,145.36,145.32,5.1927157]
[1768400289052,0.6537361,145.36,145.31,7.56388464]
[1768400289356,12.56,145.35,145.33,5.1927157]
[1768400289764,12.56,145.34,145.32,5.1927157]
[1768400289965,12.56,145.34,145.31,7.56388464]
[1768400290277,12.56,145.34,145.32,5.1927157]
[1768400290470,12.56,145.34,145.31,0.68205452]
[1768400290654,12.56,145.33,145.32,5.1927157]
[1768400290849,12.53000001,145.33,145.32,5.1927157]
[1768400291054,12.53000001,145.33,145.31,0.68205452]
[1768400291860,12.53000001,145.33,145.32,5.1927157]
[1768400292180,12.53000001,145.33,145.31,0.68205452]
[1768400292384,12.53000001,145.33,145.32,5.1927157]
[1768400292886,12.53000001,145.33,145.29,7.56469876]
[1768400293086,12.53000001,145.33,145.31,5.1927157]
[1768400293455,12.53000001,145.33,145.3,5.1927157]
[1768400293671,12.53000001,145.33,145.31,5.1927157]
[1768400293869,12.53000001,145.33,145.22,41.61317498]
[1768400293870,13.18373611,145.33,145.28,0.68205452]
[1768400294079,13.18373611,145.33,145.29,5.1927157]
[1768400294680,20.0647014,145.33,145.28,5.87477022]
[1768400294876,20.0647014,145.33,145.29,5.1927157]
[1768400295258,0.6537361,145.32,145.29,5.1927157]
[1768400295477,0.6537361,145.32,145.28,5.1927157]
[1768400295678,0.6537361,145.32,145.27,5.1927157]
[1768400295854,0.6537361,145.32,145.26,7.56618496]
[1768400296067,0.6537361,145.32,145.27,5.1927157]
[1768400296485,0.6537361,145.31,145.27,5.1927157]
[1768400296660,12.53000001,145.3,145.27,5.1927157]
[1768400296860,13.15373612,145.3,145.26,0.68205452]
[1768400297075,13.15373612,145.3,145.27,5.1927157]
[1768400297282,13.12373613,145.3,145.27,5.1927157]
[1768400297867,0.6537361,145.29,145.24,0.68205452]
[1768400298069,0.6537361,145.29,145.25,5.1927157]
[1768400298386,12.47000003,145.3,145.2,40.14029505]
[1768400298387,7.53794372,145.26,145.2,0.68205452]
[1768400298567,12.53000001,145.25,145.21,0.68205452]
[1768400298768,12.53000001,145.25,145.22,5.1927157]
[1768400299293,12.53000001,145.25,145.21,5.87477022]
[1768400299489,13.18373611,145.25,145.21,5.87477022]
[1768400299864,13.18373611,145.25,145.22,5.1927157]
[1768400300287,13.18373611,145.25,145.21,0.68205452]
[1768400300468,13.18373611,145.25,145.23,5.1927157]
[1768400300982,13.18373611,145.25,145.21,0.68205452]
[1768400301186,0.6537361,145.25,145.23,5.1927157]
[1768400301386,12.56,145.24,145.22,0.71359637]
[1768400301989,0.66072549,145.25,145.2,0.71359637]
[1768400302166,12.56,145.24,145.2,0.71359637]
[1768400302363,13.1944149,145.24,145.2,0.71359637]
[1768400302571,13.1944149,145.24,145.21,5.1927157]
[1768400302787,13.1944149,145.24,145.22,5.1927157]
[1768400302982,0.66072549,145.26,145.23,5.1927157]
[1768400303186,12.56,145.25,145.24,5.90631207]
[1768400303685,12.56,145.25,145.23,5.1927157]
[1768400303879,13.22072549,145.25,145.22,5.1927157]